bitfinex-derivatives/quotes_BNBF0:USTF0_20250303
["timestamp","ask_amount","ask_price","bid_price","bid_amount"]
[1741025218658,1.093,592.37,591.26,0.28597866]
[1741025218954,1.093,592.37,591.27,0.28597866]
[1741025219158,1.093,592.37,591.28,0.28591624]
[1741025219358,1.093,592.37,591.29,0.28591624]
[1741025219654,1.093,592.37,591.3,0.28591624]
[1741025219960,1.093,592.37,591.31,0.28591624]
[1741025220152,1.093,592.37,591.32,0.28591624]
[1741025220554,1.093,592.37,591.17,0.33831216]
[1741025220555,1.093,592.37,591.19,1.50440156]
[1741025220758,1.093,592.37,591.2,0.28587933]
[1741025220954,1.093,592.37,591.21,0.28587933]
[1741025221154,1.093,592.37,591.22,0.28587933]
[1741025221360,1.093,592.37,591.23,0.28587933]
[1741025221556,1.093,592.37,591.24,0.28587933]
[1741025221755,1.093,592.37,591.19,1.50440156]
[1741025221958,1.093,592.37,591.25,0.28590644]
[1741025222162,1.093,592.37,591.26,0.28590644]
[1741025222362,1.093,592.37,591.27,0.28590644]
[1741025222562,1.093,592.37,591.19,1.50440156]
[1741025222563,1.093,592.37,591.28,0.28590644]
[1741025222763,1.093,592.37,591.17,0.33831216]
[1741025222764,1.093,592.37,591.29,0.28590644]
[1741025223058,1.093,592.37,591.3,0.28590644]
[1741025223361,1.093,592.37,591.31,0.28590644]
[1741025223762,1.093,592.37,591.32,0.28590644]
[1741025223963,1.093,592.37,591.33,0.28590644]
[1741025224262,1.093,592.37,591.34,0.28590644]
[1741025224459,1.093,592.37,591.17,0.33831216]
[1741025224460,1.093,592.37,591.35,0.28590644]
[1741025224656,1.093,592.37,591.36,0.28590644]
[1741025224964,1.093,592.37,591.37,0.28590644]
[1741025225163,1.093,592.37,591.38,0.28590644]
[1741025225363,1.093,592.37,591.39,0.28590644]
[1741025225662,1.093,592.37,591.4,0.28590644]
[1741025225864,1.093,592.37,591.41,0.28590644]
[1741025226162,1.093,592.37,591.42,0.28590644]
[1741025226565,1.093,592.37,591.17,0.33831216]
[1741025226566,1.093,592.37,591.43,0.28590644]
[1741025226764,1.093,592.37,591.44,0.28590644]
[1741025226964,1.093,592.37,591.45,0.28590644]
[1741025227157,1.093,592.37,591.46,0.28590644]
[1741025227361,1.093,592.37,591.47,0.28590644]
[1741025227558,1.093,592.37,591.48,0.28590644]
[1741025227858,1.093,592.37,591.49,0.28590644]
[1741025228057,1.093,592.37,591.5,0.28590644]
[1741025228262,1.093,592.37,591.51,0.28590644]
[1741025228559,1.093,592.37,591.52,0.28590644]
[1741025228759,1.093,592.37,591.53,0.28590644]
[1741025228965,1.093,592.37,591.54,0.28590644]
[1741025229260,1.093,592.37,591.17,0.33831216]
[1741025229261,1.093,592.37,591.55,0.28590644]
[1741025229465,1.093,592.37,591.56,0.28590644]
[1741025229664,1.093,592.37,591.17,0.33831216]
[1741025229665,1.093,592.37,591.57,0.28590644]
[1741025229870,1.093,592.37,591.17,0.33831216]
[1741025229871,1.093,592.37,591.58,0.28590644]
[1741025230162,1.093,592.37,591.59,0.28590644]
[1741025230368,1.093,592.37,591.6,0.28590644]
[1741025230566,1.093,592.37,591.61,0.28590644]
[1741025230762,1.093,592.37,591.62,0.28590644]
[1741025230967,1.093,592.37,591.63,0.28590644]
[1741025231266,1.093,592.37,591.64,0.28590644]
[1741025231466,1.093,592.37,591.65,0.28590644]
[1741025231770,1.093,592.37,591.66,0.28590644]
[1741025231966,1.093,592.37,591.67,0.28590644]
[1741025232162,1.093,592.37,591.68,0.28590644]
[1741025232360,1.093,592.37,591.69,0.28590644]
[1741025232565,1.093,592.37,591.7,0.28590644]
[1741025232761,1.093,592.37,591.71,0.28590644]
[1741025232977,1.093,592.37,591.72,0.28590644]
[1741025233166,1.093,592.37,591.73,0.28590644]
[1741025233367,1.093,592.37,591.74,0.28590644]
[1741025233565,1.093,592.37,591.75,0.28590644]
[1741025233765,1.093,592.37,591.76,0.28590644]
[1741025233966,1.093,592.37,591.17,0.33831216]
[1741025233967,1.093,592.37,591.77,0.28590644]
[1741025234166,1.093,592.37,591.78,0.28590644]
[1741025234366,1.093,592.37,591.79,0.28590644]
[1741025234566,1.093,592.37,591.8,0.28590644]
[1741025234763,1.093,592.37,591.81,0.28590644]
[1741025235068,1.093,592.37,591.82,0.28590644]
[1741025235263,1.093,592.37,591.83,0.28590644]
[1741025235468,1.093,592.37,591.84,0.28590644]
[1741025235668,1.093,592.37,591.85,0.28590644]
[1741025235871,1.093,592.37,591.86,0.28590644]
[1741025236169,1.093,592.37,591.87,0.28590644]
[1741025236363,1.093,592.37,591.88,0.28590644]
[1741025236565,1.093,592.37,591.89,0.28590644]
[1741025236771,1.093,592.37,591.9,0.28590644]
[1741025236964,1.093,592.37,591.91,0.28590644]
[1741025237164,1.093,592.37,591.17,0.33831216]
[1741025237165,1.093,592.37,591.92,0.28590644]
[1741025237366,1.093,592.37,591.93,0.28590644]
[1741025237569,1.093,592.37,591.94,0.28583063]
[1741025237771,1.093,592.37,591.95,0.28583063]
[1741025237970,1.093,592.37,591.96,0.28583063]
[1741025238173,1.093,592.37,591.21,1.50440156]
[1741025238174,1.093,592.37,591.97,0.28583063]
[1741025238373,1.093,592.37,591.98,0.28583063]
[1741025238775,1.093,592.37,591.99,0.28583063]
[1741025238975,1.093,592.37,592.0,0.28583063]
[1741025239174,1.093,592.37,591.21,1.50440156]
[1741025239478,1.093,592.37,591.22,0.28583659]
[1741025239775,1.093,592.37,591.23,0.28583659]
[1741025239970,1.419,592.36,591.24,0.28583659]
[1741025240173,1.419,592.36,591.25,0.28583659]
[1741025240377,1.419,592.36,591.26,0.28583659]
[1741025240676,1.419,592.36,591.27,0.28583659]
[1741025240878,1.419,592.36,591.28,0.2858235]
[1741025241179,1.419,592.36,591.29,0.28583034]
[1741025241379,1.419,592.36,591.3,0.28583034]
[1741025241678,1.419,592.36,591.31,0.28583034]
[1741025241880,1.419,592.36,591.32,0.28583034]
[1741025242078,1.419,592.36,591.33,0.28583034]
[1741025242279,1.419,592.36,591.34,0.28583034]
[1741025242479,1.419,592.36,591.35,0.28583034]
[1741025242681,1.419,592.36,591.36,0.28583034]
[1741025242879,1.419,592.36,591.37,0.28583034]
[1741025243075,1.419,592.36,591.38,0.28583034]
[1741025243281,1.419,592.36,591.39,0.28583034]
[1741025243581,1.419,592.36,591.4,0.28583034]
[1741025243781,1.419,592.36,591.25,1.50440156]
[1741025243782,1.419,592.36,591.41,0.28583034]
[1741025243982,1.419,592.36,591.46,1.50440156]
[1741025244177,1.419,592.36,591.47,0.28583034]
[1741025244382,1.419,592.36,591.48,0.28583034]
[1741025244583,1.419,592.36,591.49,0.28583034]
[1741025244883,1.419,592.36,591.5,0.28583034]
[1741025245078,1.419,592.36,591.51,0.28583034]
[1741025245278,1.419,592.36,591.52,0.28583034]
[1741025245483,1.419,592.36,591.53,0.28583034]
[1741025245682,1.419,592.36,591.46,1.50440156]
[1741025245683,1.419,592.36,591.54,0.28583034]
[1741025245885,1.419,592.36,591.55,0.28583034]
[1741025246083,1.419,592.36,591.56,0.28583034]
[1741025246384,1.419,592.36,591.57,0.28583034]
[1741025246576,1.419,592.36,591.58,0.28583034]
[1741025246781,1.419,592.36,591.59,0.28583034]
[1741025246984,1.419,592.36,591.6,0.28583034]
[1741025247184,1.419,592.36,591.61,0.28605117]
[1741025247485,1.419,592.36,591.62,0.28605117]
[1741025247685,1.419,592.36,591.63,0.28605117]
[1741025247881,1.419,592.36,591.17,0.33831216]
[1741025247882,1.419,592.36,591.64,0.28605117]
[1741025248079,1.419,592.36,591.65,0.28605117]
[1741025248284,1.419,592.36,591.66,0.28605117]
[1741025248484,1.419,592.36,591.17,0.33831216]
[1741025248485,1.419,592.36,591.67,0.28605117]
[1741025248681,1.419,592.36,591.68,0.28605117]
[1741025248888,1.419,592.36,591.69,0.28605117]
[1741025249087,1.419,592.36,591.17,0.33831216]
[1741025249088,1.419,592.36,591.7,0.28605117]
[1741025249286,1.419,592.36,591.71,0.28605117]
[1741025249590,1.419,592.36,591.72,0.28605117]
[1741025249783,1.433,592.35,591.35,0.28605117]
[1741025249987,1.433,592.35,591.36,0.28605117]
[1741025250288,1.433,592.35,591.37,0.28613909]
[1741025250489,1.433,592.35,591.38,0.28613909]
[1741025250681,1.433,592.35,591.39,0.28613909]
[1741025250886,1.433,592.35,591.4,0.28613909]
[1741025251087,1.433,592.35,591.35,0.28613909]
[1741025251287,1.433,592.35,591.36,0.28613909]
[1741025251482,1.433,592.35,591.35,0.28613909]
[1741025251686,1.433,592.35,591.36,0.28613909]
[1741025251888,1.433,592.35,591.37,0.28623114]
[1741025252089,1.433,592.35,591.38,0.28623114]
[1741025252289,1.433,592.35,591.39,0.28623114]
[1741025252591,1.433,592.35,591.4,0.28623114]
[1741025252784,1.433,592.35,591.41,0.28623114]
[1741025252983,1.433,592.35,591.42,0.28623114]
[1741025253183,1.433,592.35,591.43,0.28623114]
[1741025253390,1.433,592.35,591.44,0.28623099]
[1741025253591,1.433,592.35,591.45,0.28623099]
[1741025253789,1.433,592.35,591.46,0.28623099]
[1741025253985,1.433,592.35,591.47,0.28623099]
[1741025254189,1.433,592.35,591.25,0.28623099]
[1741025254384,1.433,592.35,591.26,0.28623099]
[1741025254585,1.433,592.35,591.27,0.28623099]
[1741025254888,1.433,592.35,591.28,0.28623099]
[1741025255083,1.433,592.35,591.29,0.28623099]
[1741025255286,1.433,592.35,591.3,0.28623099]
[1741025255487,1.433,592.35,591.18,0.28623099]
[1741025255687,1.433,592.35,591.19,0.28623099]
[1741025255891,1.433,592.35,591.18,0.28623099]
[1741025257190,1.433,592.35,591.17,0.33831216]
[1741025257191,1.433,592.35,591.19,0.28623099]
[1741025257490,1.433,592.35,591.2,0.28623099]
[1741025257692,1.433,592.35,591.21,0.28623099]
[1741025257892,1.433,592.35,591.22,0.28623099]
[1741025258187,1.433,592.35,591.23,0.28613339]
[1741025258391,1.433,592.35,591.18,0.28613339]
[1741025258692,1.433,592.35,591.19,0.28613339]
[1741025258893,1.433,592.35,591.2,0.28613339]
[1741025259087,1.433,592.35,591.21,0.28613339]
[1741025259288,1.433,592.35,591.22,0.28613339]
[1741025259593,1.433,592.35,591.23,0.28613339]
[1741025259891,1.433,592.35,591.24,0.28613339]
[1741025260091,1.433,592.35,591.25,0.28613339]
[1741025260285,1.433,592.35,591.26,0.62439405]
[1741025260489,1.433,592.35,591.27,0.28613339]
[1741025260693,1.433,592.35,591.29,0.3382435]
[1741025260894,1.433,592.35,591.3,0.28613339]
[1741025261192,1.433,592.35,590.99,1.50440156]
[1741025261193,1.433,592.35,591.32,0.33822634]
[1741025261396,1.433,592.35,591.33,0.28613339]
[1741025261594,1.433,592.35,591.35,0.33820918]
[1741025261791,1.433,592.35,591.36,0.28613339]
[1741025261987,1.433,592.35,591.38,0.33819202]
[1741025262190,1.433,592.35,591.39,0.28613339]
[1741025262390,1.433,592.35,591.4,0.62431397]
[1741025262594,1.433,592.35,591.41,0.62430826]
[1741025262897,1.433,592.35,591.42,0.62430254]
[1741025263097,1.433,592.35,591.43,0.62429682]
[1741025263292,1.433,592.35,591.44,0.28613339]
[1741025263500,1.433,592.35,591.45,0.28613339]
[1741025263798,1.433,592.35,591.46,0.28613339]
[1741025263991,1.433,592.35,591.44,0.33815771]
[1741025263992,1.433,592.35,591.47,0.62427395]
[1741025264190,1.433,592.35,591.48,0.62426823]
[1741025264397,1.433,592.35,591.49,0.28613339]
[1741025264596,1.433,592.35,591.5,0.28614764]
[1741025264797,1.433,592.35,591.51,0.62426533]
[1741025264995,1.433,592.35,591.52,0.62425962]
[1741025265195,1.433,592.35,591.53,0.6242539]
[1741025265395,1.433,592.35,591.54,0.62424819]
[1741025265597,1.433,592.35,591.55,0.62424247]
[1741025265796,1.433,592.35,591.56,0.62423676]
[1741025265997,1.433,592.35,591.57,0.62423104]
[1741025266196,1.433,592.35,591.58,0.62422533]
[1741025266391,1.433,592.35,591.59,0.62421961]
[1741025266595,1.433,592.35,591.6,0.28614764]
[1741025267592,1.433,592.35,591.59,0.33807197]
[1741025267899,1.433,592.35,591.6,0.28612749]
[1741025268099,1.433,592.35,591.61,0.33806054]
[1741025268294,1.433,592.35,591.62,0.28612749]
[1741025268491,1.433,592.35,591.63,0.33804911]
[1741025268693,1.433,592.35,591.64,0.28612749]
[1741025268896,1.433,592.35,591.65,0.33803769]
[1741025269098,1.433,592.35,591.66,0.28612749]
[1741025269299,1.433,592.35,591.67,0.28623033]
[1741025269501,1.433,592.35,591.68,0.28623033]
[1741025269695,1.433,592.35,591.66,0.28623033]
[1741025269899,1.419,592.36,591.67,0.28623033]
[1741025270200,1.419,592.36,590.98,1.50440156]
[1741025270201,1.68875706,593.08,591.68,0.28623033]
[1741025270499,0.31035028,593.07,591.69,0.28623033]
[1741025270696,0.31035028,593.06,591.7,0.28623033]
[1741025270896,0.31035028,593.08,591.71,0.28623033]
[1741025271102,1.76337947,593.05,590.99,0.28623033]
[1741025271303,0.31035028,593.04,591.0,0.28623033]
[1741025271602,0.31035028,593.04,591.01,0.28623033]
[1741025271798,1.76337947,593.05,591.17,1.50440156]
[1741025272002,0.31036233,593.04,591.18,0.28623033]
[1741025273003,1.644011,593.0,591.19,0.28623033]
[1741025273205,1.644011,592.95,591.2,0.28623033]
[1741025273405,1.644011,592.95,591.07,2.5595721]
[1741025273406,0.31036233,592.94,591.18,0.28623033]
[1741025273606,1.95437333,592.94,591.19,0.28623033]
[1741025273804,1.64319411,592.99,591.19,0.28623033]
[1741025273805,1.644011,592.92,591.19,0.28623033]
[1741025274003,1.95437333,592.91,591.2,0.28623033]
[1741025274313,1.644011,592.87,590.76,1.50440156]
[1741025274503,0.31051658,592.86,590.77,0.28645064]
[1741025274699,1.76422129,592.93,590.76,1.50440156]
[1741025274700,0.31051658,592.89,590.78,0.28645064]
[1741025274904,0.31051658,592.88,590.79,0.28645064]
[1741025275102,6.9637853,592.91,590.77,0.28645064]
[1741025275302,0.31051658,592.87,590.8,0.28645064]
[1741025275499,0.31051658,592.86,590.81,0.28645064]
[1741025275699,1.644011,592.73,590.76,1.50440156]
[1741025275903,1.63640293,592.64,590.77,0.28662323]
[1741025276098,1.63640293,592.62,590.78,0.28662323]
[1741025276303,1.94709382,592.61,590.79,0.28662323]
[1741025276504,0.31069089,592.6,590.56,0.28662323]
[1741025276705,1.57169089,592.6,590.57,0.28662323]
[1741025276901,0.31069089,592.59,590.58,0.28662323]
[1741025277104,2.07540423,592.59,590.59,0.28662323]
[1741025277306,0.31069089,592.58,590.6,0.28662323]
[1741025277507,0.31069089,592.58,590.61,0.28662323]
[1741025277704,1.76471334,592.59,590.62,0.28662323]
[1741025277904,1.76471334,592.59,590.63,0.28662323]
[1741025278100,1.76471334,592.59,590.64,0.28662323]
[1741025278305,1.76471334,592.59,590.65,0.28662323]
[1741025278505,1.76471334,592.59,590.66,0.28662323]
[1741025278700,1.261,592.6,590.66,0.28662323]
[1741025278906,1.261,592.6,590.67,0.28662323]
[1741025279103,1.261,592.6,590.68,0.28662323]
[1741025279302,1.261,592.6,590.69,0.28662323]
[1741025279502,1.261,592.6,590.7,0.28662323]
[1741025279702,1.261,592.6,590.71,0.28662323]
[1741025279905,1.261,592.6,590.72,0.28662323]
[1741025280101,1.261,592.6,590.73,0.28662323]
[1741025280303,1.261,592.6,590.74,0.28662323]
[1741025280507,1.261,592.6,590.75,0.28662323]
[1741025280804,1.261,592.6,590.36,1.50440156]
[1741025280805,1.261,592.6,590.76,0.28662323]
[1741025281001,1.261,592.6,590.77,0.28662323]
[1741025281210,1.261,592.6,590.82,1.50440156]
[1741025281411,1.261,592.6,590.83,0.28662323]
[1741025281811,1.261,592.6,590.84,0.28662323]
[1741025282011,1.261,592.6,590.85,0.28662323]
[1741025282207,1.261,592.6,590.86,0.28662323]
[1741025282411,1.261,592.6,590.87,0.28662323]
[1741025282611,1.261,592.6,590.88,0.28662323]
[1741025282812,1.261,592.6,590.89,0.28662323]
[1741025283016,1.261,592.6,590.93,1.50440156]
[1741025283215,1.261,592.6,590.94,0.28662323]
[1741025283412,1.261,592.6,590.95,0.28662323]
[1741025283615,1.261,592.6,590.96,0.28662323]
[1741025283817,1.261,592.6,590.97,0.28662323]
[1741025284021,1.261,592.6,590.98,0.28662323]
[1741025284320,1.261,592.6,590.99,0.28662323]
[1741025284621,1.261,592.6,591.0,0.28662323]
[1741025284825,1.261,592.6,591.01,0.28662323]
[1741025285023,1.261,592.6,590.49,2.5595721]
[1741025285024,1.261,592.6,591.03,1.50440156]
[1741025285220,1.261,592.6,591.04,0.28662323]
[1741025285426,1.261,592.6,591.05,0.28662323]
[1741025285621,0.31045796,592.59,591.06,0.28662323]
[1741025285824,0.31045796,592.59,591.07,0.28662323]
[1741025286126,1.76416912,592.58,591.08,0.28662323]
[1741025286326,0.31045796,592.57,591.09,0.28662323]
[1741025286622,1.76416912,592.58,591.1,0.28662323]
[1741025286827,1.76416912,592.58,591.11,0.28662323]
[1741025287024,1.76416912,592.58,591.12,0.28662323]
[1741025287228,1.76416912,592.58,591.13,0.28662323]
[1741025287425,0.31048542,592.57,591.14,0.28662323]
[1741025287626,1.76416912,592.58,591.15,0.28662323]
[1741025287926,1.76416912,592.58,590.85,1.50440156]
[1741025288121,0.31049697,592.57,590.86,0.28643142]
[1741025288323,0.31049697,592.57,590.85,1.50440156]
[1741025288324,0.31049697,592.57,590.87,0.28643142]
[1741025288621,0.31049697,592.57,590.88,0.28643142]
[1741025288821,1.76416912,592.58,590.89,0.28643142]
[1741025289026,1.76416912,592.58,590.85,1.50440156]
[1741025289027,1.261,592.6,590.9,0.28643142]
[1741025289326,1.76422874,592.56,590.91,0.28643142]
[1741025289522,1.76422874,592.56,590.75,1.50440156]
[1741025289721,1.76422874,592.56,590.76,0.28646433]
[1741025289928,1.76422874,592.56,590.77,0.28646433]
[1741025290223,1.76422874,592.56,590.78,0.28646433]
[1741025290425,1.76422874,592.56,590.79,0.28646433]
[1741025290624,1.76422874,592.56,590.8,0.28646433]
[1741025290822,1.76422874,592.56,590.81,0.28646433]
[1741025291022,0.31052129,592.55,590.82,0.28646433]
[1741025291226,0.31052129,592.55,590.83,0.28646433]
[1741025291529,0.31052129,592.55,590.84,0.28646433]
[1741025291727,0.31052129,592.55,590.85,0.28646433]
[1741025291927,1.68965469,592.59,590.86,0.28646433]
[1741025292123,1.76489979,592.54,590.87,0.28646433]
[1741025292326,1.76489979,592.54,590.88,0.28646433]
[1741025292525,1.76489979,592.54,590.89,0.28646433]
[1741025292923,1.76489979,592.54,590.9,0.28646433]
[1741025293124,1.76489979,592.54,590.24,0.28646433]
[1741025293328,1.76489979,592.54,590.25,0.28646433]
[1741025293628,1.76489979,592.54,590.26,0.28646433]
[1741025293829,1.76489979,592.54,590.27,0.28646433]
[1741025294023,1.76489979,592.54,590.28,0.28646433]
[1741025294221,1.76489979,592.54,590.29,0.28646433]
[1741025294423,1.76489979,592.54,590.3,0.28646433]
[1741025294630,0.33753565,592.53,590.41,0.33874764]
[1741025294925,0.33753565,592.53,590.42,0.28646433]
[1741025295127,0.33753565,592.53,590.43,0.28646433]
[1741025295323,0.33753565,592.53,590.53,0.33867881]
[1741025295628,1.309,592.52,590.54,0.28646433]
[1741025295830,0.33754704,592.51,590.56,0.3386616]
[1741025296133,0.33754704,592.51,590.57,0.28646433]
[1741025296430,0.33754704,592.51,590.58,0.28646433]
[1741025296625,0.33754704,592.51,590.59,0.28646433]
[1741025296830,0.33754704,592.51,590.6,0.28646433]
[1741025297025,0.33754704,592.51,590.61,0.28646433]
[1741025297227,0.33754704,592.51,590.62,0.28646433]
[1741025297427,0.33754704,592.51,590.63,0.28646433]
[1741025297734,0.33754704,592.51,590.64,0.28646433]
[1741025297934,0.33754704,592.51,590.65,0.28646433]
[1741025298127,0.33754704,592.51,590.66,0.28646433]
[1741025298330,1.76454184,592.5,590.67,0.28646433]
[1741025298528,1.76454184,592.5,590.68,0.28646433]
[1741025298726,1.76454184,592.5,590.69,0.28646433]
[1741025298928,1.76454184,592.5,590.7,0.28646433]
[1741025299130,1.76454184,592.5,590.71,0.28646433]
[1741025299329,1.76454184,592.5,590.72,0.28646433]
[1741025299634,1.76454184,592.5,590.74,0.33855841]
[1741025299835,1.76454184,592.5,590.75,0.28646433]
[1741025300036,1.76454184,592.5,590.74,0.33855841]
[1741025300037,1.76454184,592.5,590.76,0.28646433]
[1741025300236,1.76454184,592.5,590.77,0.28646433]
[1741025300430,1.76454184,592.5,590.74,0.33855841]
[1741025300636,1.76454184,592.5,590.75,0.28644855]
[1741025300835,1.76454184,592.5,590.76,0.28644855]
[1741025301035,1.76454184,592.5,590.74,0.33855841]
[1741025301036,1.76454184,592.5,590.77,0.28644855]
[1741025301235,1.76454184,592.5,590.78,0.28644855]
[1741025301432,1.76454184,592.5,590.79,0.28644855]
[1741025301633,1.76454184,592.5,590.8,0.28644855]
[1741025301838,1.76454184,592.5,590.81,0.28644855]
[1741025302038,1.76454184,592.5,590.74,0.33855841]
[1741025302234,1.76454184,592.5,590.75,0.28643716]
[1741025302438,1.76454184,592.5,590.76,0.28643716]
[1741025302734,1.76454184,592.5,590.77,0.28643716]
[1741025302933,1.76454184,592.5,590.72,1.50440156]
[1741025302934,1.76454184,592.5,590.79,0.33852976]
[1741025303139,1.76454184,592.5,590.8,0.28643716]
[1741025303434,1.76454184,592.5,590.81,0.28643716]
[1741025303639,1.76454184,592.5,590.82,0.28643716]
[1741025303841,1.76454184,592.5,590.83,0.28643716]
[1741025304045,1.76454184,592.5,590.79,0.33852976]
[1741025304046,1.76454184,592.5,590.84,0.28643716]
[1741025304242,1.76454184,592.5,590.8,0.28643716]
[1741025304439,1.76454184,592.5,590.82,0.33851257]
[1741025304644,1.76454184,592.5,590.83,0.28643716]
[1741025304846,1.76454184,592.5,590.85,0.33849538]
[1741025305045,1.76454184,592.5,590.86,0.28643716]
[1741025305242,1.76454184,592.5,590.85,0.33849538]
[1741025305447,1.76454184,592.5,590.86,0.28645791]
[1741025306343,1.76454184,592.5,590.87,0.28645791]
[1741025306546,1.76454184,592.5,590.88,0.28645791]
[1741025306743,1.76454184,592.5,590.89,0.28645791]
[1741025306944,0.33754704,592.51,590.9,0.28645791]
[1741025307148,0.33754704,592.51,590.91,0.28645791]
[1741025307149,1.76430328,592.5,590.91,0.28645791]
[1741025307345,1.76430328,592.5,590.92,0.28645791]
[1741025307646,1.76430328,592.5,590.93,0.28645791]
[1741025307946,1.76430328,592.5,590.94,0.28645791]
[1741025308149,1.76430328,592.5,590.86,0.28645791]
[1741025308351,1.76430328,592.5,590.85,0.33849538]
[1741025308547,1.76430328,592.5,590.86,0.28643406]
[1741025308748,1.76430328,592.5,590.92,1.50440156]
[1741025308947,1.76430328,592.5,590.93,0.28643406]
[1741025309142,1.76430328,592.5,590.94,0.33844383]
[1741025309345,0.33756413,592.48,590.95,0.28643406]
[1741025309546,0.33756413,592.48,590.96,0.33843238]
[1741025309752,0.33756413,592.48,590.97,0.28643406]
[1741025309953,0.33756413,592.48,590.98,0.33842092]
[1741025310148,0.33756413,592.48,590.99,0.28643406]
[1741025311650,0.33756413,592.48,591.0,0.28642124]
[1741025311852,0.33756413,592.48,590.99,0.28642124]
[1741025312151,0.33756413,592.48,591.0,0.28642124]
[1741025312351,0.33756413,592.48,590.99,0.28642124]
[1741025312651,0.33756413,592.48,591.0,0.28642124]
[1741025312854,0.33756413,592.48,590.99,0.28642124]
[1741025313153,0.33756413,592.48,591.0,0.28642124]
[1741025313352,0.33756413,592.48,591.01,0.28642124]
[1741025313552,0.33756413,592.48,591.02,0.28642124]
[1741025313754,1.173,592.47,591.03,0.28642124]
[1741025313953,0.33758123,592.45,591.04,0.28642124]
[1741025314254,0.33758123,592.45,591.05,0.28642124]
[1741025314455,0.33758123,592.45,590.99,0.28642124]
[1741025314752,0.33758123,592.45,591.0,0.28641658]
[1741025314947,0.33758123,592.45,591.01,0.28641658]
[1741025315154,0.33758123,592.45,590.99,0.28641658]
[1741025315453,0.33758123,592.45,591.0,0.62482605]
[1741025315649,0.33758123,592.45,591.01,0.62482032]
[1741025315848,0.33758123,592.45,591.02,0.28641658]
[1741025316250,0.33758123,592.45,591.03,0.33839229]
[1741025316451,0.33758123,592.45,591.04,0.28641658]
[1741025316649,0.33758123,592.45,591.05,0.33838084]
[1741025316852,0.33758123,592.45,591.06,0.28641658]
[1741025317050,0.33758123,592.45,591.07,0.33836939]
[1741025317250,0.33758123,592.45,591.08,0.28641658]
[1741025317445,0.33758123,592.45,591.09,0.33835794]
[1741025317650,0.33758123,592.45,591.1,0.28641658]
[1741025317851,0.33758123,592.45,591.11,0.3383465]
[1741025318047,0.33758123,592.45,591.12,0.28641658]
[1741025318250,0.33758123,592.45,591.13,0.33833505]
[1741025318449,0.33758123,592.45,591.14,0.28641658]
[1741025321456,0.33758123,592.45,591.15,0.28639515]
[1741025321650,0.33758123,592.45,591.16,0.28639515]
[1741025321858,0.33758123,592.45,591.14,0.28639515]
[1741025322053,0.33758123,592.45,591.15,0.2863846]
[1741025322356,0.33758123,592.45,591.16,0.2863846]
[1741025322556,0.33758123,592.45,591.14,0.2863846]
[1741025323158,0.33758123,592.45,591.15,0.2863846]
[1741025323359,0.33758123,592.45,591.16,0.2863846]
[1741025323555,0.33758123,592.45,591.17,0.2863846]
[1741025323752,0.33758123,592.45,591.18,0.2863846]
[1741025323954,0.33758123,592.45,591.19,0.2863846]
[1741025324159,0.33758123,592.45,591.2,0.2863846]
[1741025324352,0.33758123,592.45,591.21,0.2863846]
[1741025324555,0.33758123,592.45,591.22,0.2863846]
[1741025324753,0.33758123,592.45,591.23,0.2863846]
[1741025324954,0.33758123,592.45,591.39,1.50440156]
[1741025325159,0.33758123,592.45,591.4,0.2863846]
[1741025325357,0.33758123,592.45,591.41,0.2863846]
[1741025325561,0.33758123,592.45,591.42,0.2863846]
[1741025325757,0.33758123,592.45,591.43,0.2863846]
[1741025325962,0.33758123,592.45,591.44,0.2863846]
[1741025326161,0.33758123,592.45,591.45,0.2863846]
[1741025326462,0.33758123,592.45,591.46,0.2863846]
[1741025326663,0.33758123,592.45,591.47,0.2863846]
[1741025326862,0.33758123,592.45,591.48,0.2863846]
[1741025327062,0.33758123,592.45,591.49,0.2863846]
[1741025327458,0.33758123,592.45,591.5,0.2863846]
[1741025327658,0.33758123,592.45,591.51,0.2863846]
[1741025327962,0.33758123,592.45,591.52,0.2863846]
[1741025328158,0.33758123,592.45,591.4,0.2863846]
[1741025328466,0.33758123,592.45,591.41,0.2863846]
[1741025328764,0.33758123,592.45,591.64,1.50440156]
[1741025328962,0.33758123,592.45,591.65,0.2863846]
[1741025330464,1.173,592.47,591.65,0.2863846]